Cogmind - Beta 16 @@@ ROGUE MODE // 2026.01.26 @ 22:37:36 Player: TheAnonymousOne Result: Self-destructed Performance ------------- Evolutions (2) 1000 Regions Visited (3) 600 Robots Destroyed (50) 250 Value Destroyed (1593) 1593 Prototype IDs (1) 20 Alien Tech Used (0) 0 Bonus (0) 0 TOTAL SCORE: 3463 Bonus ------- None Cogmind --------- Core Integrity 210/550 Matter 6/300 Energy 85/100 System Corruption 0% Temperature Cool (0) Movement Treading (165) Location -8/Materials Parts ------- > --- POWER (2) -------- (None) > --- PROPULSION (3) --- Light Treads Armored Treads > --- UTILITY (4) ------ Large Storage Unit > --- WEAPON (2) ------- Heavy Missile Launcher Heavy Missile Launcher > --- INVENTORY (15) --- Deuterium Engine Micro Nuclear Core Micro Nuclear Core Light Treads Light Treads Heat Sink Advanced Visual Processing Unit Hardlight Generator Advanced Beam Cannon Advanced Beam Cannon Light Cannon Light Cannon Grenade Launcher Peak State ------------ > --- POWER ------------ Deuterium Engine Deuterium Engine > --- PROPULSION ------- Light Treads Armored Treads Armored Treads > --- UTILITY ---------- Improved Heat Sink Large Storage Unit Medium Armor Plating Medium Armor Plating > --- WEAPON ----------- Advanced Beam Cannon Gauss Rifle > --- INVENTORY -------- Ion Engine Ion Engine Deuterium Engine Light Treads Light Treads Light Treads Light Treads Heat Sink Advanced Visual Processing Unit Hardlight Generator Advanced Beam Cannon Advanced Beam Cannon Light Cannon Light Cannon Grenade Launcher [Rating: 30] Favorites ----------- Power Deuterium Engine Engine Deuterium Engine Power Core Light Nuclear Core Propulsion Light Treads Treads Light Treads Utility Large Storage Unit Device Improved Heat Sink Storage Large Storage Unit Protection Medium Armor Plating Weapon Light Cannon Energy Gun Spread Laser Energy Cannon Advanced Beam Cannon Ballistic Gun Light Assault Rifle Ballistic Cannon Light Cannon Launcher Grenade Launcher Build | -11 -10 -9 -8 ------- Run | Yrd Mat Mat Mat Slots Evolved 4 | . . 2 2 Power 1 | . . 1 . Propulsion 1 | . . 1 . Utility 2 | . . . 2 Weapon . | . . . . Parts Attached 31 | 6 6 9 10 Power 4 | 1 1 2 . Engine 3 | 1 . 2 . Core 1 | . 1 . . Reactor . | . . . . Propulsion 10 | 2 1 4 3 Treads 10 | 2 1 4 3 Leg . | . . . . Wheel . | . . . . Hover . | . . . . Flight . | . . . . Utility 5 | 1 1 1 2 Device 1 | . . 1 . Storage 2 | 1 1 . . Processor . | . . . . Hackware . | . . . . Protection 2 | . . . 2 Artifact . | . . . . Weapon 12 | 2 3 2 5 Energy Gun 1 | . 1 . . Energy Cannon 2 | . . 1 1 Ballistic Gun 3 | 2 . . 1 Ballistic Cannon 3 | . 2 1 . Launcher 3 | . . . 3 Special Weapon . | . . . . Impact Weapon . | . . . . Slashing Weapon . | . . . . Piercing Weapon . | . . . . Special Melee Weapon . | . . . . Unidentified Prototypes 1 | . . 1 . Parts Lost 12 | . 1 1 10 Power 3 | . 1 . 2 Propulsion 3 | . . . 3 Utility 3 | . . . 3 Weapon 3 | . . 1 2 Highest Loss Streak 7 | . 1 1 7 To Critical Strikes . | . . . . Average Backups 12 | 2 10 14 13 Power 2 | 1 2 2 2 Propulsion 2 | . 2 2 3 Utility 2 | . 1 2 2 Weapon 4 | . 3 6 4 Tool/Special . | . . . . Unused Backups 18 | . 1 6 11 Power 7 | . 1 1 5 Propulsion 2 | . . 1 1 Utility 5 | . . 2 3 Weapon 4 | . . 2 2 Tool/Special . | . . . . Average Slot Usage (%) 85 | . 84 89 83 Engine 10 | . 10 9 14 Core 3 | . 3 6 . Treads 29 | . 27 33 26 Device 3 | . . 7 5 Storage 11 | . 14 11 9 Protection 2 | . . . 10 Energy Gun 2 | . 4 1 . Energy Cannon 4 | . . 9 6 Ballistic Gun 7 | . 14 . 3 Ballistic Cannon 8 | . 8 10 4 Peak Build Rating 30 | 6 10 19 30 Average Rating 13 | 3 7 15 22 On Entrance 8 | . 6 10 19 Avg Prop Armor Cover (%) . | . . . . Naked Turns . | . . . . Heaviest Build 61 | 12 31 46 61 Greatest Support 60 | 40 40 60 60 Greatest Overweight (x) 1 | . . . 1 Average Overweight (x) . | . . . . Largest Inventory Capacity 15 | 8 15 15 15 Average Capacity 14 | 6 13 15 15 Most Carried 15 | 5 15 15 15 Average Carried 12 | 2 10 14 13 Final Capacity 15 | 8 15 15 15 Final Carried 15 | 2 14 15 13 Class Distribution -------------------- 90% | Mutant 9% | Scavenger-Mutant Dominant Class ---------------- Mutant | -10/Materials Mutant | -9/Materials Mutant | -8/Materials Resources | -11 -10 -9 -8 ----------- Run | Yrd Mat Mat Mat Matter Collected 769 | 212 279 242 36 Remotely . | . . . . Salvage Created 1569 | . 611 407 551 Parts 101 | . 39 34 28 Haulers Intercepted 3 | . 1 1 1 Recyclers Shooed . | . . . . Parts Field Recycled . | . . . . Retrieved Matter . | . . . . Parts Self-Destructed . | . . . . Prevented . | . . . . Parts Restored . | . . . . Kills | -11 -10 -9 -8 ------- Run | Yrd Mat Mat Mat Combat Hostiles Destroyed 38 | . 13 12 13 Guns 11 | . 8 1 2 Cannons 21 | . 5 10 6 AOE 6 | . . 1 5 Classes Destroyed 11 | . 5 4 2 Worker 1 | . 1 . . Builder 4 | . 1 . 3 Tunneler 1 | . . 1 . Hauler 3 | . 1 1 1 Operator 1 | . . 1 . Watcher 2 | . 1 . 1 Swarmer 4 | . . 4 . Grunt 29 | . 13 6 10 Duelist 1 | . . . 1 Sentry 3 | . . 2 1 Hunter 1 | . . . 1 Best Kill Streak 10 | . 4 7 10 Combat Bots Only 7 | . 3 6 7 Max Kills in Single Turn 2 | . 2 2 2 Gunslinging 1 | . 1 . . Exploded 2 | . . 1 2 Melee . | . . . . Uniques/NPCs Destroyed . | . . . . Combat | -11 -10 -9 -8 -------- Run | Yrd Mat Mat Mat Hostile Shots Fired 315 | . 79 70 166 Missed 91 | . 37 20 34 Hits 224 | . 42 50 132 Projectile 224 | . 42 50 132 Critical Strikes 11 | . 1 1 9 Damage Taken 3315 | . 612 560 2143 Core 519 | . 116 63 340 Absorbed by Shields . | . . . . Regen/Repaired (Parts) 86 | . 86 . . Core Remaining (%) 79 | 100 53 84 . Volleys Fired 139 | . 49 45 45 Largest 2 | . 2 2 2 Hottest 98 | . 95 98 98 Shots Fired 260 | . 94 82 84 Gun 90 | . 68 6 16 Cannon 162 | . 26 76 60 Launcher 8 | . . . 8 Special . | . . . . Kinetic 171 | . 88 44 39 Thermal 81 | . 6 38 37 Explosive 8 | . . . 8 Electromagnetic . | . . . . Robot Hit Streak 16 | . 8 5 16 Robot Miss Streak 8 | . 4 8 3 Penetration Max . | . . . . Secondary Targets 2 | . 2 . . Max Gunslinging Chain 1 | . 1 . . Shots Hit Robots 151 | . 60 36 55 Core Hits 93 | . 32 24 37 Critical Kills . | . . . . Critical Parts Destroyed . | . . . . Critical Strikes 1 | . . 1 . Blast 1 | . . 1 . Melee Attacks . | . . . . Impact . | . . . . Slashing . | . . . . Piercing . | . . . . Sneak Attacks . | . . . . Combat Hostiles . | . . . . Follow-up Attacks . | . . . . Damage Inflicted 2989 | . 637 713 1639 Guns 713 | . 384 95 234 Cannons 1692 | . 248 549 895 Explosions 579 | . . 69 510 Melee . | . . . . Ramming 5 | . 5 . . Kinetic 1369 | . 591 245 533 Thermal 1036 | . 41 399 596 Explosive 510 | . . . 510 Electromagnetic 69 | . . 69 . Impact . | . . . . Slashing . | . . . . Piercing . | . . . . Highest Corruption . | . . . . Average Corruption . | . . . . Corruption Purged . | . . . . Corruption Blocked . | . . . . Overload Shots . | . . . . Overflow Damage 12 | . . . 12 Projectiles . | . . . . Explosions 12 | . . . 12 Melee . | . . . . Knockbacks 9 | . . 1 8 Impact . | . . . . Kinetic 8 | . . 1 7 Secondary 1 | . . . 1 Self-Inflicted Damage 88 | . . . 88 Shots 3 | . . . 3 Rammed 1 | . 1 . . Targets Rammed 1 | . 1 . . Kicked . | . . . . Crushed . | . . . . Highest Temperature 459 | . 139 360 459 Average Temperature 131 | . 44 140 169 Received Heat Transfer 1536 | . 327 192 1017 Effects 10 | . . 3 7 Shutdowns 3 | . . 1 2 Energy Bleed 1 | . . . 1 Interference 2 | . . 2 . Damage (minor) 1 | . . . 1 Damage (major) 3 | . . . 3 Siege Activations . | . . . . Martial Activations . | . . . . Shielding Activations . | . . . . Robots Disrupted . | . . . . Combat Hostiles . | . . . . Robots Corrupted . | . . . . Combat Hostiles . | . . . . Parts Fried . | . . . . Impact Corruptions . | . . . . Robots Melted . | . . . . Combat Hostiles . | . . . . Parts Melted 2 | . . . 2 Heat Transferred 1793 | . 50 670 1073 Parts Sabotaged . | . . . . Parts Stolen . | . . . . Parts Stripped . | . . . . Power Chain Reactions . | . . . . Alert | -11 -10 -9 -8 ------- Run | Yrd Mat Mat Mat Maximum Alert Level 1 | . . 1 1 Low Security (%) 82 | 100 100 66 69 Level 1 17 | . . 33 30 Level 2 . | . . . . Level 3 . | . . . . Level 4 . | . . . . Level 5 . | . . . . High Security . | . . . . Max Security . | . . . . Peak Influence 264 | . 109 257 264 Initial 52 | . . 24 52 Average 93 | . 45 155 105 Influence Increases 1242 | . 374 412 456 Destroy 0b10 Robot/C 760 | . 260 240 260 Destroy 0b10 Robot/NC 60 | . 20 15 25 Destroy Leader 200 | . 74 62 64 Successful Hack 40 | . 20 20 . Disable Machine 105 | . . 75 30 Destroy Structure 62 | . . . 62 Lose Combat Pursuer 15 | . . . 15 Influence Decreases 1030 | . 315 346 369 Entered New Map 108 | . . 35 73 Time Decay 802 | . 305 301 196 Lost Part 120 | . 10 10 100 Squads Dispatched 14 | . 4 3 7 Investigation 4 | . 1 1 2 Extermination . | . . . . Reinforcement 8 | . 3 2 3 Assault . | . . . . Garrison 2 | . . . 2 Intercept . | . . . . Searches Triggered . | . . . . Construction Impeded 1 | . . . 1 Haulers Reinforced . | . . . . Active Scanning Responses . | . . . . Cargo Convoy Interrupts . | . . . . Stealth | -11 -10 -9 -8 --------- Run | Yrd Mat Mat Mat Distress Signals 2 | . . 1 1 Communications Jammed . | . . . . Distress Signals . | . . . . Times Spotted 61 | . 21 18 22 Peak Tracking Total 9 | . 5 5 9 Tactical Retreats 1 | . . . 1 Traps | -11 -10 -9 -8 ------- Run | Yrd Mat Mat Mat Traps Triggered 5 | . 3 1 1 Indirectly 1 | . . 1 . Trap Hack Attempts . | . . . . Triggered . | . . . . Disarmed . | . . . . Reprogrammed . | . . . . Reused . | . . . . Traps Extracted . | . . . . Installed . | . . . . Triggered . | . . . . Machines | -11 -10 -9 -8 ---------- Run | Yrd Mat Mat Mat Machines Disabled 7 | . . 5 2 Max in Single Turn 2 | . . 2 1 Machines Repaired . | . . . . Machines Dismantled . | . . . . Machines Sabotaged . | . . . . Overloaded Fab Kills . | . . . . Hacking | -11 -10 -9 -8 --------- Run | Yrd Mat Mat Mat Machines Accessed 13 | . 7 4 2 Terminals 10 | . 6 3 1 Fabricators . | . . . . Repair Stations 2 | . 1 1 . Recycling Units . | . . . . Scanalyzers 1 | . . . 1 Garrison Access . | . . . . Total Hacks 32 | . 14 10 8 Successful 18 | . 9 5 4 Failed 13 | . 5 5 3 Catastrophic 2 | . 1 1 . Database Lockouts 1 | . . . 1 Manual 16 | . 8 6 2 Terminals 20 | . 11 7 2 Fabricators . | . . . . Repair Stations 6 | . 3 3 . Recycling Units . | . . . . Scanalyzers 6 | . . . 6 Garrison Access . | . . . . Terminal Hacks 3 | . 2 1 . Record 1 | . . 1 . Robot Analysis 1 | . 1 . . Locate Traps 1 | . 1 . . Fabricator Hacks . | . . . . Repair Station Hacks 4 | . 3 1 . Scan Component 3 | . 2 1 . Repair 1 | . 1 . . Recycling Unit Hacks . | . . . . Scanalyzer 4 | . . . 4 Insert Component 1 | . . . 1 Analyze 1 | . . . 1 Retrieve Study 2 | . . . 2 Garrison Access Hacks . | . . . . Unauthorized Hacks 7 | . 4 3 . Terminals 7 | . 4 3 . Botnet 7 | . 4 3 . Fabricators . | . . . . Repair Stations . | . . . . Recycling Units . | . . . . Scanalyzers . | . . . . Garrison Access . | . . . . Data Cores Recovered . | . . . . Used . | . . . . Hacking Detections 9 | . 5 2 2 Full Trace Events 5 | . 1 2 2 Feedback Events . | . . . . Feedback Blocked . | . . . . Robot Schematics Acquired . | . . . . Robots Built . | . . . . Authchips . | . . . . Time . | . . . . Total Robot Build Rating . | . . . . Part Schematics Acquired 1 | . . . 1 Parts Built . | . . . . Authchips . | . . . . Time . | . . . . Total Part Build Rating . | . . . . Part Studies Acquired 2 | . . . 2 Parts Repaired 1 | . 1 . . Time 26 | . 26 . . Parts Recycled . | . . . . Recycled Matter . | . . . . Retrieved Matter . | . . . . Retrieved Components . | . . . . Parts Scanalyzed 1 | . . . 1 Part Schematics Acquired 1 | . . . 1 Parts Damaged . | . . . . Bothacking | -11 -10 -9 -8 ------------ Run | Yrd Mat Mat Mat Used RIF Installer . | . . . . Robots Hacked . | . . . . Non-combat . | . . . . Combat . | . . . . Robot Hacks Applied . | . . . . Relay Couplers Released . | . . . . Fabnet Peak Effective % . | . . . . Robots Rewired . | . . . . Allies Hacked . | . . . . Hacks Repelled . | . . . . Allies | -11 -10 -9 -8 -------- Run | Yrd Mat Mat Mat Total Allies . | . . . . Largest Group . | . . . . Highest-Rated Group . | . . . . Highest-Rated Ally . | . . . . Total Orders . | . . . . Ally Attacks . | . . . . Total Damage . | . . . . Kills . | . . . . Allies Corrupted . | . . . . Allies Melted . | . . . . Intel | -11 -10 -9 -8 ------- Run | Yrd Mat Mat Mat Active Infowar (turns) . | . . . . Robot Analysis Total 1 | . 1 . . Derelict Logs Recovered . | . . . . Drone Launches . | . . . . Drone Recoveries . | . . . . Exploration | -11 -10 -9 -8 ------------- Run | Yrd Mat Mat Mat Turns Passed 2046 | 63 855 675 453 Spaces Moved 945 | 34 407 319 185 Core 4 | 4 . . . Treads 941 | 30 407 319 185 Legs . | . . . . Wheels . | . . . . Hover . | . . . . Flight . | . . . . Fastest Speed 50 | 50 160 160 160 Average Speed 160 | 147 160 160 163 Slowest Speed 219 | 160 160 160 219 Overloaded Moves . | . . . . Propulsion Burnouts . | . . . . Robots Hopped . | . . . . Potential Cave-ins . | . . . . Cave-ins Triggered . | . . . . Exploration Rate (%) 33 | 5 74 34 21 Regions Visited 3 Branch Regions . Pre-discovered Areas . | . . . . Known Exits Taken . | . . . . Unknown Exits Taken 3 | 1 1 1 . Scrap Searched . | . . . . Spaces Dug . | . . . . Terrain Destroyed 56 | . . . 56 Melee . | . . . . Projectile . | . . . . AOE 56 | . . . 56 Terrain Rammed . | . . . . Walls Destroyed . | . . . . Machines Disabled . | . . . . Actions | -11 -10 -9 -8 --------- Run | Yrd Mat Mat Mat Total 1234 | 47 530 406 251 Wait 53 | . 43 10 . Move 942 | 33 406 318 185 Hop . | . . . . Pick Up 45 | 8 19 13 5 Fast Attach 2 | . . 1 1 Attach 17 | 6 2 3 6 Detach . | . . . . Swap 15 | . 5 5 5 Drop 20 | . 5 11 4 Fire 139 | . 49 45 45 Melee . | . . . . Ram . | . . . . Kick . | . . . . Crush 1 | . 1 . . Escape Stasis . | . . . . Rewire . | . . . . Trap . | . . . . Miscellaneous . | . . . . Route ------- -11/Scrapyard -10/Materials (discovered 4 exits: *Mat x2 / [*Min x2]) -9/Materials -8/Materials (discovered 1 exit: [*Sto]) History --------- Turn | Location | Event 14 | -11/Scrapyard | Discovered new exit (range 16) 64 | -11/Scrapyard | Entered Materials 266 | -10/Materials | Discovered new exit (range 7) 282 | -10/Materials | Discovered new exit (range 5) 317 | -10/Materials | Build established: Mutant 330 | -10/Materials | Discovered new exit (range 16) 535 | -10/Materials | Discovered new exit (range 5) 782 | -10/Materials | Repaired Lgt. Treads 919 | -10/Materials | Entered another Materials area 919 | -9/Materials | Evolved 2 slots: Power x1, Propulsion x1 1532 | -9/Materials | Discovered new exit (range 16) 1594 | -9/Materials | Entered another Materials area 1594 | -8/Materials | Evolved 2 slots: Utility x2 1758 | -8/Materials | Central database locked down 1900 | -8/Materials | Garrison activated, responded to threat 1937 | -8/Materials | Destroyed 7 combat bots 1940 | -8/Materials | Lost 7 parts (1p2n3u1w) 2026 | -8/Materials | Discovered new exit (range 8) 2028 | -8/Materials | Core integrity fell below 50% 2047 | -8/Materials | Self-destructed Last Messages --------------- U-05 Engineer builds a Wall. U-05 Engineer lays Concrete. U-05 Engineer builds a Wall. K-01 Serf collects debris. ALERT: Suspicious intruders detected, dispatching Specialist reinforcements to area. K-01 Serf collects debris. Critical hit (Burn: +37). Acquired Hvy. Missile Launcher. Dropped Ion Engine. Acquired Mic. Nuclear Core. Critical hit (Burn: +37). Penetrated by Slug. Deuterium Engine destroyed. Penetrated by Slug. Gauss Rifle destroyed. Penetrated by Slug. EXIT=FOUND Lgt. Treads destroyed. Penetrated by Slug. Map ----- +----------------------------------------------------+ | ?????????# ##### | | ?????????# ################## | | ?????????## ########????????### ] | | ?########## # #????????/ # [% ] | | # # # T #????????/ /!%= ] | | # ! + + #????????? #% [ | | # # # #????????? # = | | # # # #????????? #%=[ | | ########### # #?????????? =! | | ??????# ################## ! | | ??????# #????# =#=% | | ??????# #????# = * | | ??????###### #????# %# = | | ???????????# #????# | | ???????????# #????# # | | ???????????# #????############## # | | ???????????# #??????????#####??# # | | ???????????# #?????????? ] ?#% | | ???????????# #??????????? # | | ???????????# #???????????" """ # # ## | | ???????????# #??????????????"" + # | | ???????????# ########??????????# #?"" | | ???????????# # #??????????# #?"" | | ???????????# # "T" #??????????# #??" | | ???????????+ ; #??????????# # | | ???????????# # @ #?########## + | | ???????????# # #?# ## ##### | | ???????????# # #?# ## #???? | | ???????????# ########?# ## ##??? | | ???????????# H#????????# # #??? | | ???????????# #??????### # #??? | | ???????????# ##### # + T #??? | | ???????????# # # #??? | | ????#####??# < # # #??? | | ???##!!!!#?# ##### ! # ## ##??? | | ???#! !?# #???????## ## #???? | | ???# ## ##??????## ## #???? | | ???# # ##### ####### #???? | | ???# ######^ #???? | | ???# T ## #???? | | ???# ##### ###### ## #???? | | ????????####/######??? # ???? | | ????????# #??? ??? ???? | | ????????# #### #?????? ???? | | ????????# / #??????? ???? | | ????????# ### ###????? ????? | | ????????# """ !! #?# * #????????????? | | ????????# """ !! #?# *]]]#????????????? | | ????????# """ #?#** ]]]#????????????? | | ????????# #?########????????????? | +----------------------------------------------------+ Best States ------------- Heat Dissipation 45 Energy Generation 23 Energy Capacity 450 Matter Stores 300 Matter Capacity 300 Sight Range 16 Terrain Scan Density 10 Armor Coverage 450 Evasion (%) 40 Recoil Reduction 3 Item Schematics ----------------- Lgt. Treads | -8/Materials | Scanalyzed Robot Schematics ------------------ None Fabricated ------------ Nothing Repaired ---------- Lgt. Treads | 38% | -10/Materials Studied --------- Arm. Treads | -8/Materials | Hacked Lgt. Cannon | -8/Materials | Hacked Alien Tech Used ----------------- None Achievements -------------- Troublemaker Challenges ------------ None Game ------ Seed GammaForceProjector Manual? 0 Play Time 00:18:20 Cumulative 8.5 hours Start 2026.01.26 @ 22:20:38 End 2026.01.26 @ 22:37:36 Sessions 1 Manual Loads 0 Difficulty Rogue Special Mode None Game No. 45 Rogue 45 Adventurer 0 Explorer 0 Win Type - Total 0 Types 0/0/0/0/0/0/0/0/0/0 Lore% 13 Gallery% 13 Achievement% 13 Wizard Run 0 Options --------- Layout 1 ASCII 0 Keyboard 0 Movement Numpad Keybinds 0 Fullscreen 1 Font 24/Smallcaps Map View 50x35 Zoom Use 0% Tactical HUD 0 Map Filters NONE Filters NONE Steam 1 RUN: 6117fd71-7266-401d-aa17-262ce0ee3ede